fUSD/lending_fUSD_20250206
["ID","MTS","AMOUNT","RATE_DAILY","PERIOD"]
[352019640,1738884632529,-187.63,0.00011,2]
[352019641,1738884632538,-187.63,0.00011,2]
[352019642,1738884632548,-187.63,0.00011,2]
[352019643,1738884632557,-187.63,0.00011,2]
[352019644,1738884632567,-187.63,0.00011,2]
[352019645,1738884632576,-187.63,0.00011,2]
[352019646,1738884632585,-187.63,0.00011,2]
[352019647,1738884632594,-187.63,0.00011,2]
[352019648,1738884632604,-187.63,0.00011,2]
[352019649,1738884632613,-187.63,0.00011,2]
[352019650,1738884632622,-187.63,0.00011,2]
[352019651,1738884632631,-187.63,0.00011,2]
[352019653,1738884632641,-546.0,0.000114,5]
[352019655,1738884632650,-550.0,0.00013,2]
[352019657,1738884632660,-550.8,0.0001382,2]
[352019658,1738884632669,-700.0,0.00014316,2]
[352019659,1738884632678,-2000.0,0.00014316,2]
[352019661,1738884632688,-151.0,0.0001499,2]
[352019663,1738884632697,-600.0,0.00015,2]
[352019665,1738884632707,-158.15,0.00015495,2]
[352019667,1738884632716,-200.0,0.00015509,2]
[352019669,1738884632725,-1990.0,0.00015569,2]
[352019671,1738884632734,-1000.0,0.00015607,2]
[352019673,1738884632744,-250.0,0.00015643,2]
[352019675,1738884632753,-207.4,0.00015671,2]
[352019676,1738884632762,-700.0,0.00015686,2]
[352019678,1738884632771,-2000.0,0.00015686,2]
[352019680,1738884632781,-251.2,0.00015702,2]
[352019682,1738884632791,-150.0,0.00015817,2]
[352019684,1738884632801,-815.0384741,0.00016,6]
[352019686,1738884632812,-500.0,0.00016,6]
[352019688,1738884632821,-200.0,0.00016,2]
[352019690,1738884632831,-376.95,0.00016,2]
[352019692,1738884632841,-381.1,0.00016,2]
[352019694,1738884632850,-377.63,0.00016,2]
[352019696,1738884632860,-367.51,0.00016,2]
[352019698,1738884632869,-550.8,0.00016083,2]
[352019700,1738884632879,-150.0,0.00016346,2]
[352019701,1738884632889,-150.0,0.00016376,2]
[352019702,1738884632899,-373.54,0.00016388,2]
[352019703,1738884632909,-379.22,0.00016388,2]
[352019704,1738884632918,-500.0,0.000164,5]
[352019705,1738884632928,-150.0,0.00016435,2]
[352019706,1738884632937,-500.0,0.00016438,2]
[352019707,1738884632947,-1301.01,0.00016438,2]
[352019708,1738884632957,-1028.09,0.00016438,2]
[352019709,1738884632967,-551.91,0.00016438,2]
[352019710,1738884632977,-500.0,0.00016438,2]
[352019711,1738884632987,-755.26,0.00016438,2]
[352019712,1738884632996,-1368.79,0.00016438,2]
[352019713,1738884633006,-500.0,0.00016438,2]
[352019714,1738884633016,-910.9,0.00016438,2]
[352019715,1738884633025,-500.0,0.00016438,2]
[352019716,1738884633035,-500.0,0.00016438,2]
[352019717,1738884633046,-1014.84,0.00016438,2]
[352019718,1738884633066,-500.0,0.00016438,2]
[352019719,1738884633076,-500.0,0.00016438,2]
[352019720,1738884633087,-500.0,0.00016438,2]
[352019721,1738884633098,-500.0,0.00016438,2]
[352019722,1738884633109,-801.82,0.00016438,2]
[352019723,1738884633119,-500.0,0.00016438,2]
[352019724,1738884633131,-150.0,0.00016438,2]
[352019725,1738884633141,-1000.0,0.000165,6]
[352019726,1738884633152,-150.0,0.00016501,2]
[352019727,1738884633163,-150.0,0.00016517,2]
[352019728,1738884633174,-150.0,0.00016553,2]
[352019729,1738884633184,-500.0,0.00016575,2]
[352019730,1738884633195,-1301.01,0.00016575,2]
[352019731,1738884633205,-1028.09,0.00016575,2]
[352019732,1738884633215,-551.91,0.00016575,2]
[352019733,1738884633225,-500.0,0.00016575,2]
[352019734,1738884633236,-755.26,0.00016575,2]
[352019735,1738884633251,-1368.79,0.00016575,2]
[352019736,1738884633260,-500.0,0.00016575,2]
[352019737,1738884633271,-910.9,0.00016575,2]
[352019738,1738884633283,-500.0,0.00016575,2]
[352019739,1738884633293,-500.0,0.00016575,2]
[352019740,1738884633307,-1014.84,0.00016575,2]
[352019741,1738884633316,-500.0,0.00016575,2]
[352019742,1738884633327,-500.0,0.00016575,2]
[352019743,1738884633338,-500.0,0.00016575,2]
[352019744,1738884633348,-500.0,0.00016575,2]
[352019745,1738884633357,-801.82,0.00016575,2]
[352019746,1738884633367,-500.0,0.00016575,2]
[352019747,1738884633378,-150.0,0.00016576,2]
[352019748,1738884633388,-187.63,0.0001659,2]
[352019749,1738884633397,-1600.0,0.000166,6]
[352019750,1738884633407,-440.765,0.00016636,2]
[352019751,1738884633417,-3911.0,0.00016636,2]
[352019752,1738884633426,-150.0,0.00016636,2]
[352019753,1738884633435,-347.01,0.00016658,30]
[352019754,1738884633445,-150.0,0.00016689,2]
[352019755,1738884633454,-2100.0,0.000167,6]
[352019756,1738884633464,-1500.0,0.000167,6]
[352019757,1738884633473,-152.32771619,0.00016711,2]
[352019758,1738884633483,-500.0,0.00016712,2]
[352019759,1738884633492,-1301.01,0.00016712,2]
[352019760,1738884633501,-1028.09,0.00016712,2]
[352019761,1738884633511,-551.91,0.00016712,2]
[352019762,1738884633520,-500.0,0.00016712,2]
[352019763,1738884633531,-755.26,0.00016712,2]
[352019764,1738884633541,-1368.79,0.00016712,2]
[352019765,1738884633552,-500.0,0.00016712,2]
[352019766,1738884633562,-910.9,0.00016712,2]
[352019767,1738884633571,-500.0,0.00016712,2]
[352019768,1738884633581,-500.0,0.00016712,2]
[352019769,1738884633590,-1014.84,0.00016712,2]
[352019770,1738884633600,-500.0,0.00016712,2]
[352019771,1738884633609,-500.0,0.00016712,2]
[352019772,1738884633619,-500.0,0.00016712,2]
[352019773,1738884633628,-500.0,0.00016712,2]
[352019774,1738884633638,-801.82,0.00016712,2]
[352019775,1738884633650,-500.0,0.00016712,2]
[352019776,1738884633660,-150.0,0.00016761,2]
[352019777,1738884633669,-431.53194145,0.00016795,2]
[352019778,1738884633679,-2600.0,0.000168,6]
[352019779,1738884633688,-1800.0,0.000168,6]
[352019780,1738884633698,-154.24,0.00016813,2]
[352019781,1738884633708,-500.0,0.00016849,2]
[352019782,1738884633717,-1301.01,0.00016849,2]
[352019783,1738884633727,-1028.09,0.00016849,2]
[352019784,1738884633736,-551.91,0.00016849,2]
[352019785,1738884633746,-500.0,0.00016849,2]
[352019786,1738884633756,-755.26,0.00016849,2]
[352019787,1738884633766,-1368.79,0.00016849,2]
[352019788,1738884633776,-500.0,0.00016849,2]
[352019789,1738884633786,-910.9,0.00016849,2]
[352019790,1738884633795,-500.0,0.00016849,2]
[352019791,1738884633806,-500.0,0.00016849,2]
[352019792,1738884633816,-1014.84,0.00016849,2]
[352019793,1738884633825,-500.0,0.00016849,2]
[352019794,1738884633835,-500.0,0.00016849,2]
[352019795,1738884633845,-500.0,0.00016849,2]
[352019796,1738884633854,-500.0,0.00016849,2]
[352019797,1738884633864,-801.82,0.00016849,2]
[352019798,1738884633873,-500.0,0.00016849,2]
[352019799,1738884633883,-150.0,0.0001686,2]
[352019800,1738884633892,-178.63424479,0.00016898,2]
[352019801,1738884633901,-792.96774528,0.00016898,2]
[352019802,1738884633911,-4641.48538398,0.00016898,2]
[352019803,1738884633924,-611.30256872,0.00016898,2]
[352019804,1738884633933,-555.08368116,0.00016899,2]
[352019805,1738884633943,-500.0,0.000169,6]
[352019806,1738884633953,-300.0,0.000169,6]
[352019807,1738884633963,-1783.0,0.000169,2]
[352019808,1738884633973,-150.0,0.00016944,2]
[352019809,1738884633982,-5252.78795267,0.00016954,2]
[352019810,1738884633991,-163.69192569,0.00016973,2]
[352019811,1738884634001,-307.51037254,0.00016973,2]
[352019812,1738884634010,-500.0,0.00016973,2]
[352019813,1738884634020,-187.63,0.00016986,2]
[352019814,1738884634030,-500.0,0.00016986,2]
[352019815,1738884634039,-1301.01,0.00016986,2]
[352019816,1738884634049,-1028.09,0.00016986,2]
[352019817,1738884634059,-551.91,0.00016986,2]
[352019818,1738884634068,-500.0,0.00016986,2]
[352019819,1738884634077,-755.26,0.00016986,2]
[352019820,1738884634087,-1368.79,0.00016986,2]
[352019821,1738884634097,-500.0,0.00016986,2]
[352019822,1738884634106,-910.9,0.00016986,2]
[352019823,1738884634116,-500.0,0.00016986,2]
[352019824,1738884634125,-500.0,0.00016986,2]
[352019825,1738884634135,-1014.84,0.00016986,2]
[352019826,1738884634146,-500.0,0.00016986,2]
[352019827,1738884634155,-500.0,0.00016986,2]
[352019828,1738884634164,-599.69,0.00016986,2]
[352019829,1738884634174,-500.0,0.00016986,2]
[352019830,1738884634183,-801.82,0.00016986,2]
[352019831,1738884634192,-500.0,0.00016986,2]
[352019832,1738884634201,-187.63,0.00016987,2]
[352019833,1738884634212,-187.63,0.00016988,2]
[352019834,1738884634222,-187.63,0.00016988,2]
[352019835,1738884634235,-187.63,0.00016988,2]
[352019836,1738884634245,-300.0,0.00016996,2]
[352019837,1738884634254,-300.0,0.00016996,2]
[352019838,1738884634263,-649.93,0.00016996,2]
[352019839,1738884634272,-500.0,0.00016996,2]
[352019840,1738884634282,-577.94,0.00016996,2]
[352019841,1738884634292,-1169.64,0.00016996,2]
[352019842,1738884634302,-500.0,0.00016996,2]
[352019843,1738884634312,-946.55,0.00016996,2]
[352019844,1738884634322,-500.0,0.00016996,2]
[352019845,1738884634331,-931.11,0.00016996,2]
[352019846,1738884634341,-1459.12,0.00016996,2]
[352019847,1738884634350,-1206.22,0.00016996,2]
[352019848,1738884634360,-940.09,0.00016996,2]
[352019849,1738884634369,-2241.5,0.00016996,2]
[352019850,1738884634379,-555.62,0.00016996,2]
[352019851,1738884634389,-500.0,0.00016996,2]
[352019852,1738884634398,-500.0,0.00016996,2]
[352019853,1738884634408,-1640.07,0.00016996,2]
[352019854,1738884634417,-2534.85947405,0.00016997,2]
[352019855,1738884634427,-300.069382,0.00016997,2]
[352019856,1738884634436,-161.660855,0.00016997,2]
[352019857,1738884634446,-333.538609,0.00016997,2]
[352019858,1738884634456,-500.0,0.00016997,2]
[352019859,1738884634466,-768.26,0.00016997,2]
[352019860,1738884634475,-837.05,0.00016997,2]
[352019861,1738884634485,-500.0,0.00016997,2]
[352019862,1738884634495,-565.61,0.00016997,2]
[352019863,1738884634504,-500.0,0.00016997,2]
[352019864,1738884634514,-785.01,0.00016997,2]
[352019865,1738884634525,-530.11,0.00016997,2]
[352019866,1738884634534,-517.06202479,0.00016997,2]
[352019867,1738884634546,-148.29797521,0.00016997,2]
[352019868,1738884634556,-246.77,0.00016997,2]
[352019869,1738884634566,-141.72839478,0.00016997,2]
[352019870,1738884634578,-358.27160522,0.00016997,2]
[352019871,1738884634587,-500.0,0.00016997,2]
[352019872,1738884634597,-1480.43,0.00016997,2]
[352019873,1738884634606,-500.0,0.00016997,2]
[352019874,1738884634616,-840.77,0.00016997,2]
[352019875,1738884634626,-928.33,0.00016997,2]
[352019876,1738884634637,-646.94,0.00016997,2]
[352019877,1738884634646,-771.97,0.00016997,2]
[352019878,1738884634655,-995.51,0.00016997,2]
[352019879,1738884634665,-715.46,0.00016997,2]
[352019880,1738884634674,-500.0,0.00016997,2]
[352019881,1738884634684,-505.7,0.00016997,2]
[352019882,1738884634694,-932.97,0.00016997,2]
[352019883,1738884634704,-204.110972,0.00016997,2]
[352019884,1738884634714,-918.89,0.00016997,2]
[352019885,1738884634724,-500.0,0.00016997,2]
[352019886,1738884634733,-1177.2,0.00016997,2]
[352019887,1738884634743,-500.0,0.00016997,2]
[352019888,1738884634752,-993.38,0.00016997,2]
[352019889,1738884634761,-199.169226,0.00016997,2]
[352019890,1738884634771,-1179.75,0.00016997,2]
[352019891,1738884634780,-820.23,0.00016997,2]
[352019892,1738884634790,-999.0,0.00016997,2]
[352019893,1738884634799,-1277.04,0.00016997,2]
[352019894,1738884634811,-540.08,0.00016997,2]
[352019895,1738884634820,-2283.16,0.00016997,2]
[352019896,1738884634830,-2600.93,0.00016997,2]
[352019897,1738884634839,-500.0,0.00016997,2]
[352019898,1738884634849,-500.0,0.00016997,2]
[352019899,1738884634858,-722.67,0.00016997,2]
[352019900,1738884634867,-687.69,0.00016997,2]
[352019901,1738884634877,-1025.54,0.00016997,2]
[352019902,1738884634886,-204.110967,0.00016997,2]
[352019903,1738884634896,-500.0,0.00016997,2]
[352019904,1738884634906,-199.169216,0.00016997,2]
[352019905,1738884634916,-1513.89,0.00016997,2]
[352019906,1738884634925,-500.0,0.00016997,2]
[352019907,1738884634935,-540.57,0.00016997,2]
[352019908,1738884634944,-976.31,0.00016997,2]
[352019909,1738884634954,-500.0,0.00016997,2]
[352019910,1738884634963,-883.24,0.00016997,2]
[352019911,1738884634972,-905.7,0.00016997,2]
[352019912,1738884634982,-913.96,0.00016997,2]
[352019913,1738884634992,-500.0,0.00016997,2]
[352019914,1738884635001,-772.66,0.00016997,2]
[352019915,1738884635010,-935.94,0.00016997,2]
[352019916,1738884635020,-204.110967,0.00016997,2]
[352019917,1738884635030,-703.05,0.00016997,2]
[352019918,1738884635039,-199.169216,0.00016997,2]
[352019919,1738884635048,-897.37,0.00016997,2]
[352019920,1738884635060,-891.65,0.00016997,2]
[352019921,1738884635070,-671.49,0.00016997,2]
[352019922,1738884635080,-500.0,0.00016997,2]
[352019923,1738884635265,-500.0,0.00016997,2]
[352019924,1738884635275,-867.92,0.00016997,2]
[352019925,1738884635285,-1321.85,0.00016997,2]
[352019926,1738884635295,-1228.86,0.00016997,2]
[352019927,1738884635306,-300.0,0.00016997,2]
[352019928,1738884635316,-300.0,0.00016997,2]
[352019929,1738884635326,-300.0,0.00016997,2]
[352019930,1738884635335,-165.913,0.00016998,2]
[352019931,1738884635345,-500.0,0.00016998,2]
[352019932,1738884635355,-500.0,0.00016998,2]
[352019933,1738884635364,-500.0,0.00016998,2]
[352019934,1738884635373,-500.0,0.00016998,2]
[352019935,1738884635383,-500.0,0.00016998,2]
[352019936,1738884635392,-213.14795442,0.00016998,2]
[352019937,1738884635613,-286.85204558,0.00016998,2]
[352019938,1738884635622,-224.19235606,0.00016998,2]
[352019939,1738884635736,-29.03764394,0.00016998,2]
[352019940,1738884635749,-549.76,0.00016998,2]
[352019941,1738884635758,-500.0,0.00016998,2]
[352019942,1738884635768,-500.0,0.00016998,2]
[352019943,1738884635777,-317.43942096,0.00016998,2]
[352019944,1738884635787,-500.0,0.00016998,2]
[352019945,1738884635796,-308.37,0.00016998,2]
[352019946,1738884635809,-500.0,0.00016998,2]
[352019947,1738884635818,-500.0,0.00016998,2]
[352019948,1738884635828,-164.29904083,0.00016998,2]
[352019949,1738884635837,-500.0,0.00016998,2]
[352019950,1738884635847,-500.0,0.00016998,2]
[352019951,1738884635856,-624.48,0.00016998,2]
[352019952,1738884635866,-179.92,0.00016998,2]
[352019953,1738884635875,-500.0,0.00016998,2]
[352019954,1738884635884,-297.11,0.00016998,2]
[352019955,1738884635894,-274.5,0.00016998,2]
[352019956,1738884635903,-319.87,0.00016998,2]
[352019957,1738884635913,-184.5,0.00016998,2]
[352019958,1738884635922,-500.0,0.00016998,2]
[352019959,1738884635933,-635.82,0.00016998,2]
[352019960,1738884635942,-500.0,0.00016998,2]
[352019961,1738884635952,-18.43176129,0.00016998,2]
[352019962,1738884635964,-201.87823871,0.00016998,2]
[352019963,1738884635974,-1676.787,0.00016998,2]
[352019964,1738884635983,-500.0,0.00016998,2]
[352019965,1738884635993,-630.81,0.00016998,2]
[352019966,1738884636003,-500.0,0.00016998,2]
[352019967,1738884636013,-500.0,0.00016998,2]
[352019968,1738884636022,-500.0,0.00016998,2]
[352019969,1738884636033,-500.0,0.00016998,2]
[352019970,1738884636042,-500.0,0.00016998,2]
[352019971,1738884636053,-500.0,0.00016998,2]
[352019972,1738884636065,-500.0,0.00016998,2]
[352019973,1738884636074,-500.0,0.00016998,2]
[352019974,1738884636083,-349.13443038,0.00016998,2]
[352019975,1738884636095,-500.0,0.00016998,2]
[352019976,1738884636105,-500.0,0.00016998,2]
[352019977,1738884636116,-72.54613291,0.00016998,2]
[352019978,1738884636128,-427.45386709,0.00016998,2]
[352019979,1738884636137,-538.46,0.00016998,2]
[352019980,1738884636148,-500.0,0.00016998,2]
[352019981,1738884636158,-500.0,0.00016998,2]
[352019982,1738884636167,-500.0,0.00016998,2]
[352019983,1738884636176,-273.35223415,0.00016998,2]
[352019984,1738884636186,-500.0,0.00016998,2]
[352019985,1738884636195,-500.0,0.00016998,2]
[352019986,1738884636205,-500.0,0.00016998,2]
[352019987,1738884636214,-500.0,0.00016998,2]
[352019988,1738884636223,-183.96,0.00016998,2]
[352019989,1738884636235,-500.0,0.00016998,2]
[352019990,1738884636249,-500.0,0.00016998,2]
[352019991,1738884636259,-95.59283775,0.00016998,2]
[352019992,1738884636271,-404.40716225,0.00016998,2]
[352019993,1738884636282,-500.0,0.00016998,2]
[352019994,1738884636293,-500.0,0.00016998,2]
[352019995,1738884636303,-68.58560062,0.00016998,2]
[352019996,1738884636315,-431.41439938,0.00016998,2]
[352019997,1738884636325,-500.0,0.00016998,2]
[352019998,1738884636335,-500.0,0.00016998,2]
[352019999,1738884636345,-500.0,0.00016998,2]
[352020000,1738884636354,-500.0,0.00016998,2]
[352020001,1738884636365,-500.0,0.00016998,2]
[352020002,1738884636375,-444.66,0.00016998,2]
[352020003,1738884636388,-500.0,0.00016998,2]
[352020004,1738884636398,-500.0,0.00016998,2]
[352020005,1738884636408,-500.0,0.00016998,2]
[352020006,1738884636417,-500.0,0.00016998,2]
[352020007,1738884636428,-500.0,0.00016998,2]
[352020008,1738884636438,-500.0,0.00016998,2]
[352020009,1738884636448,-500.0,0.00016998,2]
[352020010,1738884636459,-500.0,0.00016998,2]
[352020011,1738884636468,-500.0,0.00016998,2]
[352020012,1738884636478,-500.0,0.00016998,2]
[352020013,1738884636488,-500.0,0.00016998,2]
[352020014,1738884636498,-500.0,0.00016998,2]
[352020015,1738884636508,-245.86,0.00016998,2]
[352020016,1738884636518,-500.0,0.00016998,2]
[352020017,1738884636530,-500.0,0.00016998,2]
[352020018,1738884636539,-127.59415934,0.00016998,2]
[352020019,1738884636553,-372.40584066,0.00016998,2]
[352020020,1738884636562,-500.0,0.00016998,2]
[352020021,1738884636572,-101.31915934,0.00016998,2]
[352020022,1738884636583,-398.68084066,0.00016998,2]
[352020023,1738884636594,-144.23915934,0.00016998,2]
[352020024,1738884636606,-355.76084066,0.00016998,2]
[352020025,1738884636615,-124.16915934,0.00016998,2]
[352020026,1738884636631,-375.83084066,0.00016998,2]
[352020027,1738884636640,-500.0,0.00016998,2]
[352020028,1738884636650,-253.96199811,0.00016998,2]
[352020029,1738884636661,-246.03800189,0.00016998,2]
[352020030,1738884636671,-500.0,0.00016998,2]
[352020031,1738884636680,-446.44995051,0.00016998,2]
[352020032,1738884638114,-964.49876133,0.00010999,2]
[352020033,1738884638126,-960.0,0.00010999,2]
[352020034,1738884638140,-606.6,0.00010999,2]
[352020035,1738884638152,-319.41578627,0.00010999,2]
[352020036,1738884638162,-500.0,0.00016438,2]
[352020037,1738884638173,-186.92421373,0.00016438,2]
[352020038,1738884638245,-340.6967435,0.00016438,2]
[352020039,1738884638254,-500.0,0.00016575,2]
[352020040,1738884638264,-639.0,0.00016636,2]
[352020041,1738884638275,-500.0,0.00016712,2]
[352020042,1738884638287,-500.0,0.00016849,2]
[352020043,1738884638298,-109.10267669,0.00016986,2]
[352020044,1738884638313,-390.89732331,0.00016986,2]
[352020045,1738884638324,-500.0,0.00016997,2]
[352020046,1738884638334,-53.55004949,0.00016998,2]
[352020047,1738884638346,-500.0,0.00016998,2]
[352020048,1738884638355,-380.96,0.00016998,2]
[352020049,1738884638365,-500.0,0.00016998,2]
[352020050,1738884638376,-707.86,0.00016998,2]
[352020051,1738884638386,-500.0,0.00016998,2]
[352020052,1738884638396,-500.0,0.00016998,2]
[352020053,1738884638405,-500.0,0.00016998,2]
[352020054,1738884638415,-500.0,0.00016998,2]
[352020055,1738884638425,-500.0,0.00016998,2]
[352020057,1738884638435,-15.5326272,0.00016998,2]
[352020059,1738884638448,-484.4673728,0.00016998,2]
[352020061,1738884638457,-500.0,0.00016998,2]
[352020063,1738884638466,-500.0,0.00016998,2]
[352020064,1738884638476,-306.52,0.00016998,2]
[352020065,1738884638485,-500.0,0.00016998,2]
[352020066,1738884638494,-500.0,0.00016998,2]
[352020067,1738884638503,-500.0,0.00016998,2]
[352020068,1738884638513,-500.0,0.00016998,2]
[352020069,1738884638522,-500.0,0.00016998,2]
[352020070,1738884638531,-500.0,0.00016998,2]
[352020071,1738884638540,-500.0,0.00016998,2]
[352020072,1738884638549,-500.0,0.00016998,2]
[352020073,1738884638563,-500.0,0.00016998,2]
[352020075,1738884638573,-500.0,0.00016998,2]
[352020077,1738884638583,-500.0,0.00016998,2]
[352020079,1738884638593,-500.0,0.00016998,2]
[352020081,1738884638603,-500.0,0.00016998,2]
[352020083,1738884638613,-595.39,0.00016998,2]
[352020085,1738884638623,-455.54,0.00016998,2]
[352020087,1738884638632,-500.0,0.00016998,2]
[352020089,1738884638642,-456.69,0.00016998,2]
[352020091,1738884638652,-500.0,0.00016998,2]
[352020093,1738884638662,-500.0,0.00016998,2]
[352020095,1738884638672,-500.0,0.00016998,2]
[352020097,1738884638681,-500.0,0.00016998,2]
[352020099,1738884638690,-557.4,0.00016998,2]
[352020101,1738884638699,-500.0,0.00016998,2]
[352020103,1738884638709,-500.0,0.00016998,2]
[352020105,1738884638718,-143.9926272,0.00016998,2]
[352020108,1738884638731,-356.0073728,0.00016998,2]
[352020109,1738884638739,-530.16283249,0.00016998,2]
[352020112,1738884638750,-500.0,0.00016998,2]
[352020113,1738884638759,-576.8122004,0.00016998,2]
[352020114,1738884638768,-500.0,0.00016998,2]
[352020115,1738884638778,-621.05,0.00016998,2]
[352020116,1738884638788,-500.0,0.00016998,2]
[352020117,1738884638798,-620.5,0.00016998,2]
[352020118,1738884638814,-430.06,0.00016998,2]
[352020119,1738884638824,-500.0,0.00016998,2]
[352020120,1738884638834,-500.0,0.00016998,2]
[352020121,1738884638843,-500.0,0.00016998,2]
[352020122,1738884638853,-500.0,0.00016998,2]
[352020123,1738884638862,-500.0,0.00016998,2]
[352020124,1738884638872,-500.0,0.00016998,2]
[352020125,1738884638882,-314.27,0.00016998,2]
[352020126,1738884638891,-500.0,0.00016998,2]
[352020127,1738884638900,-500.0,0.00016998,2]
[352020128,1738884638909,-517.0,0.00016998,2]
[352020129,1738884638917,-221.44,0.00016998,2]
[352020130,1738884638926,-500.0,0.00016998,2]
[352020131,1738884638935,-500.0,0.00016998,2]
[352020132,1738884638945,-500.0,0.00016998,2]
[352020133,1738884638956,-466.21,0.00016998,2]
[352020134,1738884638965,-500.0,0.00016998,2]
[352020135,1738884638975,-500.0,0.00016998,2]
[352020136,1738884638985,-427.48,0.00016998,2]
[352020137,1738884638994,-500.0,0.00016998,2]
[352020138,1738884639003,-500.0,0.00016998,2]
[352020139,1738884639012,-500.0,0.00016998,2]
[352020140,1738884639021,-500.0,0.00016998,2]
[352020141,1738884639030,-500.0,0.00016998,2]
[352020142,1738884639039,-500.0,0.00016998,2]
[352020143,1738884639048,-500.0,0.00016998,2]
[352020144,1738884639061,-500.0,0.00016998,2]
[352020145,1738884639070,-500.0,0.00016998,2]
[352020146,1738884639079,-500.0,0.00016998,2]
[352020147,1738884639088,-500.0,0.00016998,2]
[352020148,1738884639098,-500.0,0.00016998,2]
[352020149,1738884639107,-500.0,0.00016998,2]
[352020150,1738884639116,-500.0,0.00016998,2]
[352020151,1738884639126,-380.31,0.00016998,2]
[352020152,1738884639135,-500.0,0.00016998,2]
[352020153,1738884639145,-500.0,0.00016998,2]
[352020154,1738884639155,-500.0,0.00016998,2]
[352020155,1738884639165,-500.0,0.00016998,2]
[352020156,1738884639173,-500.0,0.00016998,2]
[352020157,1738884639183,-500.0,0.00016998,2]
[352020158,1738884639193,-500.0,0.00016998,2]
[352020159,1738884639202,-500.0,0.00016998,2]
[352020160,1738884639212,-500.0,0.00016998,2]
[352020161,1738884639221,-500.0,0.00016998,2]
[352020162,1738884639232,-500.0,0.00016998,2]
[352020163,1738884639243,-495.52,0.00016998,2]
[352020164,1738884639253,-500.0,0.00016998,2]
[352020165,1738884639262,-500.0,0.00016998,2]
[352020166,1738884639271,-500.0,0.00016998,2]
[352020167,1738884639280,-500.0,0.00016998,2]
[352020168,1738884639294,-228.46,0.00016998,2]
[352020169,1738884639303,-500.0,0.00016998,2]
[352020170,1738884639313,-500.0,0.00016998,2]
[352020171,1738884639324,-2409.86,0.00016998,2]
[352020172,1738884639333,-609.11369345,0.00016998,2]
[352020173,1738884639342,-500.0,0.00016998,2]
[352020174,1738884639351,-500.0,0.00016998,2]
[352020175,1738884639360,-500.0,0.00016998,2]
[352020176,1738884639370,-500.0,0.00016998,2]
[352020177,1738884639379,-500.0,0.00016998,2]
[352020178,1738884639389,-500.0,0.00016998,2]
[352020179,1738884639398,-500.0,0.00016998,2]
[352020180,1738884639407,-500.0,0.00016998,2]
[352020181,1738884639416,-536.0,0.00016998,2]
[352020182,1738884639425,-563.7,0.00016998,2]
[352020183,1738884639434,-500.0,0.00016998,2]
[352020184,1738884639444,-500.0,0.00016998,2]
[352020185,1738884639453,-500.0,0.00016998,2]
[352020186,1738884639462,-550.57,0.00016998,2]